[Event "Early-Titled-Tuesday-Blitz-January-16-2024"]
[Site "Chess.com"]
[Date "2024.01.16"]
[Round "1"]
[White "Aleksandar-Topalov"]
[Black "Emp3rador"]
[Result "1-0"]
[WhiteElo "2307"]
[BlackElo "2618"]
[TimeControl "180+1"]
[EndTime "8:08:18 PST"]
[Termination "Aleksandar-Topalov won by resignation"]

1. b3 {[%clk 0:03:00.9]} 1... e5 {[%clk 0:02:58.3]} 2. Bb2 {[%clk 0:02:59.2]}
2... Nc6 {[%clk 0:02:58.5]} 3. e3 {[%clk 0:02:55.3]} 3... a6 {[%clk 0:02:58.4]}
4. c4 {[%clk 0:02:52.5]} 4... Nf6 {[%clk 0:02:57.6]} 5. Nf3 {[%clk 0:02:51.5]}
5... d6 {[%clk 0:02:50.8]} 6. d4 {[%clk 0:02:50.6]} 6... exd4 {[%clk 0:02:48]}
7. Nxd4 {[%clk 0:02:49.7]} 7... Be7 {[%clk 0:02:44.4]} 8. Nc3 {[%clk 0:02:49.6]}
8... O-O {[%clk 0:02:42.4]} 9. Be2 {[%clk 0:02:49.8]} 9... Bd7 {[%clk
0:02:25.1]} 10. O-O {[%clk 0:02:49.2]} 10... Nxd4 {[%clk 0:02:24.8]} 11. Qxd4
{[%clk 0:02:48.1]} 11... Bc6 {[%clk 0:02:20.9]} 12. Nd5 {[%clk 0:02:45.4]} 12...
Bxd5 {[%clk 0:02:18.3]} 13. cxd5 {[%clk 0:02:45.5]} 13... Ne8 {[%clk 0:02:17.6]}
14. Rac1 {[%clk 0:02:36.4]} 14... Bf6 {[%clk 0:02:16.2]} 15. Qd2 {[%clk
0:02:36.3]} 15... Bxb2 {[%clk 0:02:15.2]} 16. Qxb2 {[%clk 0:02:36.4]} 16... Nf6
{[%clk 0:02:12.3]} 17. Bf3 {[%clk 0:02:33.8]} 17... Re8 {[%clk 0:02:02.5]} 18.
Rc3 {[%clk 0:02:30.6]} 18... Re5 {[%clk 0:01:51.1]} 19. Qd2 {[%clk 0:02:27.8]}
19... Ne4 {[%clk 0:01:22.2]} 20. Bxe4 {[%clk 0:02:26.7]} 20... Rxe4 {[%clk
0:01:23.1]} 21. Rfc1 {[%clk 0:02:24.4]} 21... Re7 {[%clk 0:01:19.4]} 22. Qc2
{[%clk 0:02:22.5]} 22... Rc8 {[%clk 0:01:18.7]} 23. b4 {[%clk 0:02:21.7]} 23...
Qd7 {[%clk 0:01:14.2]} 24. h3 {[%clk 0:02:14.7]} 24... g6 {[%clk 0:01:14.3]} 25.
a4 {[%clk 0:02:09.6]} 25... h5 {[%clk 0:01:13.4]} 26. Qb3 {[%clk 0:02:00.5]}
26... Re4 {[%clk 0:00:55.2]} 27. b5 {[%clk 0:01:54.1]} 27... axb5 {[%clk
0:00:38.4]} 28. axb5 {[%clk 0:01:53.6]} 28... b6 {[%clk 0:00:26.1]} 29. Rc6
{[%clk 0:01:34.9]} 29... Re5 {[%clk 0:00:12.1]} 30. Qc4 {[%clk 0:01:31.5]} 30...
Qf5 {[%clk 0:00:09.3]} 31. Rd1 {[%clk 0:01:07.8]} 31... Re4 {[%clk 0:00:06.6]}
32. Qc3 {[%clk 0:01:05.9]} 32... Qe5 {[%clk 0:00:05]} 33. Qc2 {[%clk 0:00:52.2]}
33... Rb4 {[%clk 0:00:04.7]} 34. Rxb6 {[%clk 0:00:47.7]} 34... cxb6 {[%clk
0:00:02.9]} 35. Qxc8+ {[%clk 0:00:47.1]} 35... Kg7 {[%clk 0:00:03.6]} 36. Qc6
{[%clk 0:00:44.7]} 36... Rb2 {[%clk 0:00:03.1]} 37. Qxb6 {[%clk 0:00:42.3]}
37... Qc3 {[%clk 0:00:02.4]} 38. Qxd6 {[%clk 0:00:35.4]} 38... Rxb5 {[%clk
0:00:02.3]} 39. Qf4 {[%clk 0:00:29.7]} 39... Qf6 {[%clk 0:00:02.3]} 40. Qxf6+
{[%clk 0:00:20.1]} 40... Kxf6 {[%clk 0:00:03.2]} 41. d6 {[%clk 0:00:20.4]} 41...
Rb8 {[%clk 0:00:03.3]} 42. d7 {[%clk 0:00:20.3]} 42... Rd8 {[%clk 0:00:03.9]}
43. e4 {[%clk 0:00:20.2]} 43... Ke7 {[%clk 0:00:04.3]} 44. f4 {[%clk 0:00:20.5]}
44... Rxd7 {[%clk 0:00:04.5]} 45. Rxd7+ {[%clk 0:00:19.8]} 45... Kxd7 {[%clk
0:00:05.4]} 46. Kf2 {[%clk 0:00:20.3]} 46... Kd6 {[%clk 0:00:06]} 47. Ke3 {[%clk
0:00:20.9]} 47... Kc5 {[%clk 0:00:06.7]} 48. Kd3 {[%clk 0:00:21.3]} 48... f6
{[%clk 0:00:07.2]} 49. Kc3 {[%clk 0:00:21.3]} 49... Kc6 {[%clk 0:00:07.5]} 50.
Kd4 {[%clk 0:00:21.6]} 50... Kd6 {[%clk 0:00:08]} 51. e5+ {[%clk 0:00:21.9]}
51... Ke6 {[%clk 0:00:08.5]} 52. exf6 {[%clk 0:00:20.8]} 52... Kxf6 {[%clk
0:00:09.4]} 53. g4 {[%clk 0:00:20.9]} 53... hxg4 {[%clk 0:00:09.2]} 54. hxg4
{[%clk 0:00:20.7]} 54... Ke6 {[%clk 0:00:09.6]} 55. Ke4 {[%clk 0:00:20.2]} 55...
Kd6 {[%clk 0:00:10]} 56. f5 {[%clk 0:00:18.5]} 56... Ke7 {[%clk 0:00:09.7]} 57.
Ke5 {[%clk 0:00:16.9]} 57... Kf7 {[%clk 0:00:07.8]} 58. f6 {[%clk 0:00:16.9]}
58... g5 {[%clk 0:00:01.9]} 59. Kf5 {[%clk 0:00:16.9]} 59... Kf8 {[%clk
0:00:02.4]} 60. Kxg5 {[%clk 0:00:17.4]} 60... Kg8 {[%clk 0:00:02.7]} 61. Kg6
{[%clk 0:00:17.7]} 61... Kf8 {[%clk 0:00:03]} 62. f7 {[%clk 0:00:17.9]} 62...
Ke7 {[%clk 0:00:03.6]} 63. Kg7 {[%clk 0:00:18.5]} 1-0

[Event "Early-Titled-Tuesday-Blitz-January-16-2024"]
[Site "Chess.com"]
[Date "2024.01.16"]
[Round "1"]
[White "isaks"]
[Black "tjallkompall"]
[Result "0-1"]
[WhiteElo "2407"]
[BlackElo "2762"]
[TimeControl "180+1"]
[EndTime "8:08:19 PST"]
[Termination "tjallkompall won by resignation"]

1. e4 {[%clk 0:02:59.5]} 1... Nf6 {[%clk 0:02:55.7]} 2. e5 {[%clk 0:02:59.3]}
2... Nd5 {[%clk 0:02:56.3]} 3. d4 {[%clk 0:02:58.1]} 3... d6 {[%clk 0:02:56.6]}
4. Bc4 {[%clk 0:02:58.4]} 4... c6 {[%clk 0:02:55]} 5. Nf3 {[%clk 0:02:47.6]}
5... Bg4 {[%clk 0:02:54.5]} 6. h3 {[%clk 0:02:38.2]} 6... Bh5 {[%clk 0:02:52.3]}
7. O-O {[%clk 0:02:35.3]} 7... e6 {[%clk 0:02:40.4]} 8. Nbd2 {[%clk 0:02:22.5]}
8... dxe5 {[%clk 0:02:36.4]} 9. dxe5 {[%clk 0:02:21.6]} 9... Nd7 {[%clk
0:02:37.1]} 10. Qe1 {[%clk 0:02:12.8]} 10... Be7 {[%clk 0:02:29.5]} 11. Nd4
{[%clk 0:02:03.5]} 11... Bg6 {[%clk 0:01:55.9]} 12. c3 {[%clk 0:01:54.7]} 12...
O-O {[%clk 0:01:50.2]} 13. f4 {[%clk 0:01:42.7]} 13... Nc5 {[%clk 0:01:50.3]}
14. Qg3 {[%clk 0:01:30]} 14... Bh4 {[%clk 0:01:32.3]} 15. Qf3 {[%clk 0:01:30]}
15... f6 {[%clk 0:01:28.6]} 16. exf6 {[%clk 0:01:08]} 16... Bxf6 {[%clk
0:01:28.5]} 17. b4 {[%clk 0:01:00.5]} 17... Bxd4+ {[%clk 0:01:15.9]} 18. cxd4
{[%clk 0:01:01.4]} 18... Rxf4 {[%clk 0:01:16]} 19. Qe2 {[%clk 0:00:37]} 19...
Rxf1+ {[%clk 0:01:13.7]} 20. Kxf1 {[%clk 0:00:34.6]} 20... Qf6+ {[%clk
0:01:00.3]} 21. Nf3 {[%clk 0:00:29.2]} 21... Ne4 {[%clk 0:01:00.9]} 22. Kg1
{[%clk 0:00:26.5]} 22... Nec3 {[%clk 0:00:49.3]} 23. Qf2 {[%clk 0:00:22.2]}
23... Rf8 {[%clk 0:00:43.8]} 24. Bg5 {[%clk 0:00:21.9]} 24... Qf5 {[%clk
0:00:43.1]} 25. Re1 {[%clk 0:00:20.6]} 25... h6 {[%clk 0:00:41.8]} 26. Bh4
{[%clk 0:00:17.2]} 26... Bh5 {[%clk 0:00:30.9]} 27. Re5 {[%clk 0:00:11.9]} 27...
Qb1+ {[%clk 0:00:22.6]} 28. Re1 {[%clk 0:00:11.9]} 28... Qxb4 {[%clk 0:00:22.8]}
29. Bb3 {[%clk 0:00:09.1]} 29... Bxf3 {[%clk 0:00:22]} 30. gxf3 {[%clk
0:00:09.4]} 30... Nf4 {[%clk 0:00:21.3]} 31. Qf1 {[%clk 0:00:06.9]} 31... Qxd4+
{[%clk 0:00:19.4]} 32. Kh1 {[%clk 0:00:07.1]} 32... Kh8 {[%clk 0:00:18.5]} 33.
Bf2 {[%clk 0:00:06.5]} 33... Qf6 {[%clk 0:00:16.4]} 34. Be3 {[%clk 0:00:04.2]}
34... Ncd5 {[%clk 0:00:17]} 35. Bxa7 {[%clk 0:00:03.4]} 35... b6 {[%clk
0:00:15.8]} 36. Bxd5 {[%clk 0:00:02.8]} 36... Nxd5 {[%clk 0:00:14.1]} 37. Bxb6
{[%clk 0:00:03.7]} 37... Nxb6 {[%clk 0:00:13.7]} 38. Qf2 {[%clk 0:00:04]} 38...
Nd5 {[%clk 0:00:14]} 39. a4 {[%clk 0:00:03.9]} 39... Qxf3+ {[%clk 0:00:14.2]}
40. Qxf3 {[%clk 0:00:04.2]} 40... Rxf3 {[%clk 0:00:15.1]} 41. Rxe6 {[%clk
0:00:05.1]} 41... Ra3 {[%clk 0:00:13.7]} 42. Rxc6 {[%clk 0:00:05]} 42... Rxa4
{[%clk 0:00:13.5]} 43. Rc8+ {[%clk 0:00:05.9]} 43... Kh7 {[%clk 0:00:13.7]} 44.
Kg2 {[%clk 0:00:06.8]} 44... Nf4+ {[%clk 0:00:13.9]} 45. Kg3 {[%clk 0:00:07.7]}
45... Nh5+ {[%clk 0:00:13.8]} 46. Kg2 {[%clk 0:00:07.8]} 46... Ra2+ {[%clk
0:00:11.2]} 47. Kf3 {[%clk 0:00:08.1]} 47... Ra3+ {[%clk 0:00:11.8]} 48. Kg4
{[%clk 0:00:08.6]} 48... Nf6+ {[%clk 0:00:12]} 49. Kf5 {[%clk 0:00:09]} 49...
Rxh3 {[%clk 0:00:10.6]} 50. Ke6 {[%clk 0:00:09.9]} 50... Re3+ {[%clk 0:00:10.5]}
51. Kf7 {[%clk 0:00:10.8]} 51... h5 {[%clk 0:00:09.6]} 52. Re8 {[%clk
0:00:07.2]} 52... Nxe8 {[%clk 0:00:05.1]} 53. Kf8 {[%clk 0:00:06.4]} 53... Rf3+
{[%clk 0:00:05.8]} 0-1

[Event "Early-Titled-Tuesday-Blitz-January-16-2024"]
[Site "Chess.com"]
[Date "2024.01.16"]
[Round "1"]
[White "Doublekk14"]
[Black "CarlosjPineror"]
[Result "0-1"]
[WhiteElo "2240"]
[BlackElo "2604"]
[TimeControl "180+1"]
[EndTime "8:08:20 PST"]
[Termination "CarlosjPineror won by checkmate"]

1. c4 {[%clk 0:03:00.9]} 1... c5 {[%clk 0:02:59.4]} 2. Nc3 {[%clk 0:03:00.1]}
2... e6 {[%clk 0:02:58.7]} 3. e3 {[%clk 0:03:00.4]} 3... Nf6 {[%clk 0:02:57.7]}
4. d4 {[%clk 0:03:00.3]} 4... b6 {[%clk 0:02:54.6]} 5. Nf3 {[%clk 0:02:58.6]}
5... d6 {[%clk 0:02:54.3]} 6. Be2 {[%clk 0:02:58.5]} 6... Nbd7 {[%clk
0:02:54.6]} 7. O-O {[%clk 0:02:58.3]} 7... Bb7 {[%clk 0:02:55]} 8. b3 {[%clk
0:02:54.2]} 8... a6 {[%clk 0:02:45.6]} 9. Bb2 {[%clk 0:02:54]} 9... Qc7 {[%clk
0:02:43.1]} 10. Qd2 {[%clk 0:02:53.3]} 10... Be7 {[%clk 0:02:42.8]} 11. Rfd1
{[%clk 0:02:53.1]} 11... Rg8 {[%clk 0:02:42.4]} 12. Rac1 {[%clk 0:02:46.8]}
12... g5 {[%clk 0:02:41.7]} 13. d5 {[%clk 0:02:39.8]} 13... g4 {[%clk
0:02:40.8]} 14. Ne1 {[%clk 0:02:38.2]} 14... h5 {[%clk 0:02:34.1]} 15. Nd3
{[%clk 0:02:16.4]} 15... O-O-O {[%clk 0:02:29.2]} 16. dxe6 {[%clk 0:02:07.7]}
16... fxe6 {[%clk 0:02:27.4]} 17. Nf4 {[%clk 0:02:07.6]} 17... Nf8 {[%clk
0:02:16.3]} 18. Bf1 {[%clk 0:02:05]} 18... h4 {[%clk 0:02:11]} 19. e4 {[%clk
0:01:50]} 19... g3 {[%clk 0:02:06.1]} 20. fxg3 {[%clk 0:01:44.3]} 20... hxg3
{[%clk 0:02:06.1]} 21. h3 {[%clk 0:01:44.4]} 21... e5 {[%clk 0:02:02.7]} 22.
Nfd5 {[%clk 0:01:41.7]} 22... Nxd5 {[%clk 0:02:02.1]} 23. Nxd5 {[%clk
0:01:33.3]} 23... Bg5 {[%clk 0:01:55.9]} 24. Qd3 {[%clk 0:01:00.3]} 24... Bxd5
{[%clk 0:01:34]} 25. Qxd5 {[%clk 0:00:59.7]} 25... Qb7 {[%clk 0:01:10.9]} 26.
Qxg8 {[%clk 0:00:56.5]} 26... Qe7 {[%clk 0:01:04.5]} 27. Rc2 {[%clk 0:00:51.9]}
27... Ne6 {[%clk 0:00:41.2]} 28. Qg6 {[%clk 0:00:51.8]} 28... Rf8 {[%clk
0:00:36.6]} 29. Bc1 {[%clk 0:00:50.9]} 29... Bxc1 {[%clk 0:00:26.7]} 30. Rcxc1
{[%clk 0:00:51]} 30... Rf6 {[%clk 0:00:26.2]} 31. Qg4 {[%clk 0:00:50.5]} 31...
Kc7 {[%clk 0:00:26.2]} 32. Qg8 {[%clk 0:00:44.7]} 32... Kb7 {[%clk 0:00:23]} 33.
Rd5 {[%clk 0:00:40.8]} 33... Nd4 {[%clk 0:00:22.8]} 34. Rxd4 {[%clk 0:00:39.8]}
34... cxd4 {[%clk 0:00:21.9]} 35. Qd5+ {[%clk 0:00:40.7]} 35... Ka7 {[%clk
0:00:21.5]} 36. c5 {[%clk 0:00:39.9]} 36... dxc5 {[%clk 0:00:22.4]} 37. Qc4
{[%clk 0:00:39]} 37... a5 {[%clk 0:00:20.3]} 38. Qa6+ {[%clk 0:00:38.6]} 38...
Kb8 {[%clk 0:00:20.8]} 39. Qb5 {[%clk 0:00:36.9]} 39... Rf8 {[%clk 0:00:18.1]}
40. Bc4 {[%clk 0:00:34.6]} 40... Qf6 {[%clk 0:00:17.2]} 41. Bd5 {[%clk
0:00:32.6]} 41... Ka7 {[%clk 0:00:15.5]} 42. Bc4 {[%clk 0:00:28.9]} 42... Kb8
{[%clk 0:00:15]} 43. Rf1 {[%clk 0:00:26.3]} 43... Qe7 {[%clk 0:00:13.7]} 44.
Qxb6+ {[%clk 0:00:22.7]} 44... Kc8 {[%clk 0:00:13.6]} 45. Qc6+ {[%clk
0:00:21.4]} 45... Kb8 {[%clk 0:00:13.8]} 46. Rf5 {[%clk 0:00:13.9]} 46... Rxf5
{[%clk 0:00:12.8]} 47. exf5 {[%clk 0:00:13.7]} 47... e4 {[%clk 0:00:13.3]} 48.
Bd5 {[%clk 0:00:13.4]} 48... d3 {[%clk 0:00:11.2]} 49. Qa8+ {[%clk 0:00:10.9]}
49... Kc7 {[%clk 0:00:11.3]} 50. Qb7+ {[%clk 0:00:10.9]} 50... Kd6 {[%clk
0:00:12.2]} 51. Qc6+ {[%clk 0:00:10.6]} 51... Ke5 {[%clk 0:00:11.9]} 52. Bxe4
{[%clk 0:00:08.9]} 52... Qd8 {[%clk 0:00:10.9]} 53. Qe6+ {[%clk 0:00:03.5]}
53... Kf4 {[%clk 0:00:10.4]} 54. Bf3 {[%clk 0:00:03.6]} 54... Qd4+ {[%clk
0:00:10.4]} 55. Kf1 {[%clk 0:00:02.4]} 55... Qf2# {[%clk 0:00:10.2]} 0-1

[Event "Early-Titled-Tuesday-Blitz-January-16-2024"]
[Site "Chess.com"]
[Date "2024.01.16"]
[Round "1"]
[White "Zapateado"]
[Black "blitzking1729"]
[Result "1/2-1/2"]
[WhiteElo "2367"]
[BlackElo "2678"]
[TimeControl "180+1"]
[EndTime "8:08:22 PST"]
[Termination "Game drawn - insufficient material"]

1. c4 {[%clk 0:03:00.9]} 1... Nf6 {[%clk 0:02:49.6]} 2. Nc3 {[%clk 0:03:00]}
2... c5 {[%clk 0:02:34.4]} 3. g3 {[%clk 0:02:58.9]} 3... Nc6 {[%clk 0:02:31.9]}
4. Bg2 {[%clk 0:02:59.3]} 4... g6 {[%clk 0:02:32.5]} 5. e4 {[%clk 0:02:59.6]}
5... Bg7 {[%clk 0:02:33.4]} 6. Nge2 {[%clk 0:02:59.8]} 6... O-O {[%clk
0:02:31.1]} 7. O-O {[%clk 0:02:59.5]} 7... Ne8 {[%clk 0:02:31.2]} 8. d3 {[%clk
0:02:53.8]} 8... Nc7 {[%clk 0:02:31.7]} 9. Be3 {[%clk 0:02:53.2]} 9... Ne6
{[%clk 0:02:32.4]} 10. a3 {[%clk 0:02:49.4]} 10... Rb8 {[%clk 0:02:28.3]} 11.
Rb1 {[%clk 0:02:49.4]} 11... a5 {[%clk 0:02:26.4]} 12. Nb5 {[%clk 0:02:35.7]}
12... Ned4 {[%clk 0:02:19.8]} 13. Nexd4 {[%clk 0:02:24.8]} 13... cxd4 {[%clk
0:02:13]} 14. Bd2 {[%clk 0:02:20.4]} 14... d6 {[%clk 0:02:13.1]} 15. b4 {[%clk
0:02:18.1]} 15... axb4 {[%clk 0:02:13.5]} 16. axb4 {[%clk 0:02:18.5]} 16... Be6
{[%clk 0:02:12.5]} 17. f4 {[%clk 0:01:56]} 17... Qd7 {[%clk 0:02:04]} 18. Qe2
{[%clk 0:00:51.6]} 18... Bg4 {[%clk 0:01:59.3]} 19. Bf3 {[%clk 0:00:50.8]} 19...
Bxf3 {[%clk 0:01:58.7]} 20. Qxf3 {[%clk 0:00:51.7]} 20... f5 {[%clk 0:01:59.1]}
21. exf5 {[%clk 0:00:47.4]} 21... Rxf5 {[%clk 0:01:52.5]} 22. Qe4 {[%clk
0:00:33.4]} 22... Kh8 {[%clk 0:01:30.4]} 23. Rfe1 {[%clk 0:00:28.1]} 23... e5
{[%clk 0:01:05.2]} 24. Qd5 {[%clk 0:00:24.5]} 24... Rd8 {[%clk 0:01:02.4]} 25.
c5 {[%clk 0:00:14.6]} 25... dxc5 {[%clk 0:00:45.5]} 26. Qxd7 {[%clk 0:00:15.5]}
26... Rxd7 {[%clk 0:00:45.6]} 27. bxc5 {[%clk 0:00:16.2]} 27... h5 {[%clk
0:00:39.3]} 28. Nd6 {[%clk 0:00:14.8]} 28... Rf8 {[%clk 0:00:34.7]} 29. Rxb7
{[%clk 0:00:15.1]} 29... Rxb7 {[%clk 0:00:34.3]} 30. Nxb7 {[%clk 0:00:16]} 30...
Rb8 {[%clk 0:00:34.6]} 31. Nd6 {[%clk 0:00:14.8]} 31... Rb2 {[%clk 0:00:33.8]}
32. Bc1 {[%clk 0:00:14.2]} 32... Rb3 {[%clk 0:00:31.3]} 33. Nf7+ {[%clk
0:00:08.1]} 33... Kg8 {[%clk 0:00:31.2]} 34. Nxe5 {[%clk 0:00:08.7]} 34... Bxe5
{[%clk 0:00:31]} 35. fxe5 {[%clk 0:00:09.6]} 35... Kf7 {[%clk 0:00:30.9]} 36.
e6+ {[%clk 0:00:09.1]} 36... Ke8 {[%clk 0:00:30.9]} 37. Bg5 {[%clk 0:00:09.3]}
37... Rxd3 {[%clk 0:00:30.6]} 38. Ra1 {[%clk 0:00:06]} 38... Rb3 {[%clk
0:00:23]} 39. Ra8+ {[%clk 0:00:06.4]} 39... Rb8 {[%clk 0:00:23.3]} 40. Rxb8+
{[%clk 0:00:05.6]} 40... Nxb8 {[%clk 0:00:23.9]} 41. Kf1 {[%clk 0:00:06]} 41...
Na6 {[%clk 0:00:21.4]} 42. c6 {[%clk 0:00:05.8]} 42... Nc7 {[%clk 0:00:22.1]}
43. Ke2 {[%clk 0:00:05.4]} 43... Nxe6 {[%clk 0:00:22.3]} 44. Bf6 {[%clk
0:00:05.6]} 44... Kf7 {[%clk 0:00:13.7]} 45. Be5 {[%clk 0:00:05.6]} 45... Ke7
{[%clk 0:00:14]} 46. Kd3 {[%clk 0:00:05.7]} 46... g5 {[%clk 0:00:10.4]} 47. Bxd4
{[%clk 0:00:06.1]} 47... Kd6 {[%clk 0:00:10.8]} 48. Be3 {[%clk 0:00:04.8]} 48...
h4 {[%clk 0:00:09.7]} 49. g4 {[%clk 0:00:04]} 49... Kxc6 {[%clk 0:00:05.1]} 50.
Ke4 {[%clk 0:00:04.3]} 50... Kd6 {[%clk 0:00:03.6]} 51. Kf5 {[%clk 0:00:04.8]}
51... Kd5 {[%clk 0:00:03.7]} 52. Bxg5 {[%clk 0:00:05]} 52... Nd4+ {[%clk
0:00:04.6]} 53. Kg6 {[%clk 0:00:04.7]} 53... Nf3 {[%clk 0:00:02.3]} 54. Kh5
{[%clk 0:00:04.6]} 54... Nxh2 {[%clk 0:00:02.4]} 55. Bxh4 {[%clk 0:00:03.5]}
55... Nxg4 {[%clk 0:00:03.3]} 1/2-1/2

[Event "Early-Titled-Tuesday-Blitz-January-16-2024"]
[Site "Chess.com"]
[Date "2024.01.16"]
[Round "1"]
[White "xakevicius91"]
[Black "Shield12"]
[Result "0-1"]
[WhiteElo "2520"]
[BlackElo "3009"]
[TimeControl "180+1"]
[EndTime "8:08:23 PST"]
[Termination "Shield12 won by resignation"]

1. e4 {[%clk 0:03:00.9]} 1... c5 {[%clk 0:02:59.5]} 2. Nf3 {[%clk 0:03:00.8]}
2... e6 {[%clk 0:03:00.3]} 3. b3 {[%clk 0:02:59.9]} 3... Nc6 {[%clk 0:03:00.5]}
4. Bb5 {[%clk 0:02:57.8]} 4... a6 {[%clk 0:03:01.4]} 5. Bxc6 {[%clk 0:02:56.6]}
5... bxc6 {[%clk 0:03:02.3]} 6. Bb2 {[%clk 0:02:56.8]} 6... f6 {[%clk
0:03:01.2]} 7. c3 {[%clk 0:02:56.3]} 7... d5 {[%clk 0:02:59]} 8. Qe2 {[%clk
0:02:54.7]} 8... Nh6 {[%clk 0:02:54.3]} 9. d4 {[%clk 0:02:51]} 9... Nf7 {[%clk
0:02:52.6]} 10. exd5 {[%clk 0:02:26.7]} 10... cxd5 {[%clk 0:02:52.1]} 11. c4
{[%clk 0:02:27.3]} 11... dxc4 {[%clk 0:02:51.4]} 12. Qxc4 {[%clk 0:02:25.1]}
12... cxd4 {[%clk 0:02:47.4]} 13. Nxd4 {[%clk 0:02:18]} 13... Ne5 {[%clk
0:02:43.9]} 14. Qe2 {[%clk 0:02:07.3]} 14... Bb4+ {[%clk 0:02:43.2]} 15. Nd2
{[%clk 0:02:05.7]} 15... Qd5 {[%clk 0:02:34.6]} 16. O-O {[%clk 0:01:52.8]} 16...
Bb7 {[%clk 0:02:34.6]} 17. N2f3 {[%clk 0:01:49.7]} 17... O-O {[%clk 0:02:26.8]}
18. Rad1 {[%clk 0:01:48]} 18... Rad8 {[%clk 0:01:57.6]} 19. Kh1 {[%clk
0:01:23.5]} 19... Nxf3 {[%clk 0:01:52.9]} 20. Nxf3 {[%clk 0:01:20.7]} 20... Qe4
{[%clk 0:01:46.9]} 21. Qxe4 {[%clk 0:01:14.5]} 21... Bxe4 {[%clk 0:01:47.8]} 22.
Nd4 {[%clk 0:01:15.1]} 22... Kf7 {[%clk 0:01:45.7]} 23. f3 {[%clk 0:01:11.8]}
23... Bb7 {[%clk 0:01:44.8]} 24. a3 {[%clk 0:01:09.5]} 24... Be7 {[%clk
0:01:43.1]} 25. b4 {[%clk 0:01:09.5]} 25... Bd5 {[%clk 0:01:40.8]} 26. Rfe1
{[%clk 0:01:08.7]} 26... Rd7 {[%clk 0:01:34.7]} 27. Ne2 {[%clk 0:01:04.1]} 27...
Rfd8 {[%clk 0:01:30.7]} 28. Nc3 {[%clk 0:01:03.5]} 28... Bc4 {[%clk 0:01:27.2]}
29. Rxd7 {[%clk 0:00:59.3]} 29... Rxd7 {[%clk 0:01:28.1]} 30. Rd1 {[%clk
0:01:00]} 30... Rxd1+ {[%clk 0:01:25.8]} 31. Nxd1 {[%clk 0:01:00.9]} 31... e5
{[%clk 0:01:26.2]} 32. Kg1 {[%clk 0:01:00]} 32... Ke6 {[%clk 0:01:25.3]} 33. Kf2
{[%clk 0:01:00.2]} 33... Bd8 {[%clk 0:01:24.4]} 34. Bc1 {[%clk 0:00:59.7]} 34...
f5 {[%clk 0:01:22.9]} 35. g3 {[%clk 0:00:57.6]} 35... g5 {[%clk 0:01:22.2]} 36.
Be3 {[%clk 0:00:53.3]} 36... f4 {[%clk 0:01:21.6]} 37. Bc5 {[%clk 0:00:48.3]}
37... h5 {[%clk 0:01:20.5]} 38. Nc3 {[%clk 0:00:40.7]} 38... g4 {[%clk
0:01:18.4]} 39. fxg4 {[%clk 0:00:40.4]} 39... hxg4 {[%clk 0:01:19.3]} 40. a4
{[%clk 0:00:36.7]} 40... Kf5 {[%clk 0:01:18.3]} 41. b5 {[%clk 0:00:23.9]} 41...
axb5 {[%clk 0:01:17.7]} 42. axb5 {[%clk 0:00:24.8]} 42... Ke6 {[%clk 0:00:55.7]}
43. b6 {[%clk 0:00:23.9]} 43... Ba6 {[%clk 0:00:55.8]} 44. gxf4 {[%clk
0:00:03.1]} 44... exf4 {[%clk 0:00:54.9]} 45. Ke1 {[%clk 0:00:03.6]} 45... Bf6
{[%clk 0:00:37.6]} 46. Ne2 {[%clk 0:00:03.5]} 46... Be5 {[%clk 0:00:34.5]} 47.
Bf2 {[%clk 0:00:03.6]} 47... f3 {[%clk 0:00:28.9]} 48. Ng3 {[%clk 0:00:03.6]}
48... Kd5 {[%clk 0:00:23.9]} 49. Kd2 {[%clk 0:00:04]} 49... Bb7 {[%clk
0:00:19.4]} 50. Be3 {[%clk 0:00:04.5]} 50... Kc4 {[%clk 0:00:18.5]} 51. Nf5
{[%clk 0:00:04.5]} 51... Bxh2 {[%clk 0:00:17.2]} 52. Bf2 {[%clk 0:00:05.1]}
52... Bf4+ {[%clk 0:00:17]} 53. Ne3+ {[%clk 0:00:04.2]} 53... Kb5 {[%clk
0:00:16.8]} 54. Ke1 {[%clk 0:00:04.4]} 54... g3 {[%clk 0:00:17.3]} 55. Bxg3
{[%clk 0:00:02.7]} 55... Bxe3 {[%clk 0:00:16.8]} 56. Bf2 {[%clk 0:00:02.7]}
56... Bxf2+ {[%clk 0:00:16.3]} 57. Kxf2 {[%clk 0:00:03.6]} 0-1